bitfinex-derivatives/quotes_ETHF0:USTF0_20250102
["timestamp","ask_amount","ask_price","bid_price","bid_amount"]
[1735809132311,0.291,3441.4,3441.2,0.29101]
[1735809132608,0.29098,3441.6,3441.5,0.29099]
[1735809132804,0.29099,3441.5,3441.3,0.291]
[1735809133715,0.29099,3441.5,3441.4,0.434]
[1735809133907,3.2078,3441.7,3441.4,0.434]
[1735809134112,0.29098,3441.6,3441.4,0.725]
[1735809134418,3.49877,3441.7,3441.5,0.29098]
[1735809134716,3.49877,3441.7,3441.4,0.72499]
[1735809134717,0.29098,3441.6,3441.4,0.72499]
[1735809135314,0.29098,3441.6,3441.5,0.29099]
[1735809135816,3.2078,3441.7,3441.5,0.29099]
[1735809136017,0.29098,3441.6,3441.5,0.29099]
[1735809136217,3.2078,3441.7,3441.5,0.29099]
[1735809136519,3.49878,3441.7,3441.5,0.29099]
[1735809137115,3.49878,3441.7,3441.4,0.434]
[1735809137318,3.2078,3441.7,3441.6,0.29098]
[1735809137713,3.49877,3441.7,3441.6,0.29098]
[1735809138311,3.49877,3441.7,3441.4,0.434]
[1735809138715,3.49877,3441.7,3441.6,0.29098]
[1735809139211,0.29099,3441.6,3441.4,0.72499]
[1735809140016,0.29099,3441.6,3441.5,0.29099]
[1735809140215,3.49877,3441.7,3441.6,0.29098]
[1735809140613,3.49877,3441.7,3441.4,0.434]
[1735809140614,3.2078,3441.7,3441.4,0.434]
[1735809140917,3.2078,3441.7,3441.6,0.29098]
[1735809141111,0.43,3442.1,3441.4,3.6418]
[1735809141312,0.29097,3441.8,3441.7,0.29097]
[1735809142308,0.29097,3441.7,3441.6,0.29097]
[1735809142918,0.29097,3441.8,3441.7,0.29097]
[1735809143120,0.29097,3441.7,3441.6,0.29098]
[1735809144519,0.29097,3441.8,3441.7,0.29097]
[1735809145121,0.29097,3441.8,3441.4,3.6418]
[1735809145122,0.43,3442.1,3441.4,3.6418]
[1735809145316,0.29096,3441.9,3441.8,0.29096]
[1735809145516,0.29096,3441.8,3441.7,0.29096]
[1735809146716,0.29096,3441.9,3441.8,0.29096]
[1735809147117,0.43,3442.1,3441.8,0.29096]
[1735809147419,0.29097,3441.8,3441.7,0.29097]
[1735809148426,0.43,3442.1,3441.7,0.29097]
[1735809148730,0.29097,3441.8,3441.7,0.2324]
[1735809148921,0.29097,3441.8,3441.7,0.52337]
[1735809149628,0.29097,3441.8,3441.7,0.2324]
[1735809149824,0.29097,3441.8,3441.7,0.52337]
[1735809150542,0.29097,3441.8,3441.7,0.2324]
[1735809150738,0.29097,3441.8,3441.7,0.52337]
[1735809151444,0.29097,3441.8,3441.7,0.2324]
[1735809160653,2.3732964,3441.8,3441.7,0.2324]
[1735809160948,2.3732964,3441.8,3441.7,0.13839622]
[1735809161650,2.3732964,3441.8,3441.7,0.07325832]
[1735809162944,0.29099,3441.5,3441.4,3.2078]
[1735809164052,0.74639,3441.5,3441.4,3.2078]
[1735809164941,0.29101,3441.2,3441.1,3.6311]
[1735809168853,2.0823264,3441.3,3440.6,0.9189]
[1735809169153,2.0823264,3440.9,3439.9,3.2078]
[1735809169359,3.2078,3440.3,3439.6,0.8646]
[1735809169561,0.29114,3439.7,3439.6,0.8646]
[1735809170058,2.0823264,3439.7,3439.1,8.16846397]
[1735809170253,0.29118,3439.2,3439.1,8.17046397]
[1735809170653,0.29118,3439.2,3439.1,7.74526397]
[1735809170851,3.2078,3439.9,3439.5,0.29116]
[1735809171161,0.72772,3440.4,3439.8,0.29113]
[1735809171162,3.2078,3440.4,3439.8,0.29113]
[1735809171357,0.29112,3440.0,3439.9,3.2078]
[1735809171852,1.158,3441.0,3439.9,3.2078]
[1735809171853,0.29106,3440.6,3440.4,0.29107]
[1735809172058,0.8799,3441.1,3440.5,0.4394]
[1735809172256,0.29106,3440.7,3440.5,1.19477]
[1735809172458,3.2078,3441.2,3440.6,40.8]
[1735809172660,0.29104,3440.9,3440.6,40.8]
[1735809172849,3.2078,3441.2,3440.6,40.8]
[1735809173057,0.29105,3440.8,3440.6,41.09106]
[1735809173561,0.29104,3440.9,3440.7,0.29105]
[1735809173761,3.2078,3441.2,3440.6,40.8]
[1735809173957,0.9048,3441.6,3440.9,3.2078]
[1735809174161,3.2078,3441.8,3441.1,0.29102]
[1735809174361,3.2078,3441.8,3441.2,0.887]
[1735809174565,0.291,3441.4,3441.2,0.887]
[1735809175258,0.291,3441.3,3441.2,0.887]
[1735809178563,0.29099,3441.6,3441.3,0.291]
[1735809178766,3.0027264,3442.0,3441.3,3.4988]
[1735809178767,0.29099,3441.5,3441.3,3.4988]
[1735809178965,3.2078,3442.2,3441.3,3.2078]
[1735809179163,0.29099,3441.5,3441.3,3.4988]
[1735809179463,0.29098,3441.6,3441.3,3.4988]
[1735809179663,0.29094,3442.1,3441.3,3.4988]
[1735809179865,0.29099,3441.6,3441.3,3.4988]
[1735809180364,0.29099,3441.5,3441.3,3.2078]
[1735809180565,3.2078,3441.8,3441.3,3.2078]
[1735809180964,0.29099,3441.5,3441.3,3.2078]
[1735809181167,0.291,3441.4,3441.3,3.2078]
[1735809182764,0.29099,3441.5,3441.3,3.2078]
[1735809183363,3.2078,3441.8,3441.3,3.2078]
[1735809183564,0.291,3441.4,3441.3,3.2078]
[1735809186965,2.5300264,3441.7,3440.7,3.2078]
[1735809187167,0.29103,3441.0,3440.9,0.43]
[1735809190969,0.29104,3440.9,3440.8,0.4569]
[1735809191971,0.29104,3440.9,3440.8,0.9128]
[1735809194071,0.29104,3440.9,3440.8,1.1453]
[1735809196273,0.29104,3440.9,3440.8,0.2325]
[1735809196975,0.29104,3440.9,3440.3,3.2078]
[1735809196976,0.29108,3440.4,3440.3,3.2078]
[1735809198180,0.29108,3440.4,3440.3,3.49889]
[1735809198877,0.29108,3440.5,3440.4,0.29108]
[1735809199377,0.29106,3440.7,3440.3,3.2078]
[1735809199573,3.93534,3441.2,3440.3,3.2078]
[1735809199881,0.29106,3440.7,3440.6,0.29106]
[1735809200177,0.29107,3440.6,3440.4,0.29108]
[1735809200377,0.29107,3440.6,3440.5,0.29107]
[1735809203077,0.29108,3440.5,3440.4,0.29108]
[1735809203473,0.29108,3440.4,3440.3,3.49888]
[1735809204480,0.72761,3440.9,3440.3,3.2078]
[1735809204678,0.29108,3440.5,3440.4,0.29108]
[1735809204886,0.29108,3440.5,3440.4,3.49888]
[1735809205077,0.29108,3440.5,3440.4,3.2078]
[1735809205976,0.29108,3440.5,3440.4,3.49888]
[1735809206483,0.29107,3440.6,3440.5,0.29107]
[1735809209081,4.3728,3441.2,3440.4,3.2078]
[1735809209287,0.29107,3440.5,3440.4,3.49888]
[1735809209687,0.29107,3440.5,3440.4,3.2078]
[1735809210985,0.29107,3440.5,3440.4,3.49888]
[1735809211180,0.29107,3440.5,3440.4,3.2078]
[1735809211382,0.29107,3440.5,3440.4,3.49888]
[1735809212294,0.29106,3440.7,3440.6,0.29106]
[1735809213685,3.6442,3441.2,3440.4,3.2078]
[1735809213891,0.29107,3440.6,3440.5,0.29107]
[1735809214787,0.72756,3441.1,3440.4,3.2078]
[1735809214987,0.29106,3440.7,3440.6,0.29106]
[1735809215588,10.306052,3441.4,3440.4,5.2901264]
[1735809215790,10.306052,3441.4,3441.1,0.29102]
[1735809216085,0.291,3441.3,3441.2,0.8816]
[1735809216490,0.291,3441.4,3441.3,0.291]
[1735809217192,1.345,3441.8,3441.2,0.8816]
[1735809217384,0.291,3441.4,3441.3,0.291]
[1735809218393,0.29099,3441.5,3441.4,0.29099]
[1735809219094,4.5298,3442.1,3441.3,3.2078]
[1735809219392,0.29098,3441.6,3441.5,0.29098]
[1735809219795,0.29099,3441.5,3441.4,0.29099]
[1735809221193,0.291,3441.4,3441.3,3.4988]
[1735809221395,0.29099,3441.5,3441.4,0.29099]
[1735809222695,0.291,3441.4,3441.3,3.4988]
[1735809223295,0.29099,3441.5,3441.4,0.29099]
[1735809223690,4.5298,3442.1,3441.3,3.2078]
[1735809223889,0.29098,3441.6,3441.5,0.29098]
[1735809224099,4.5298,3442.1,3441.3,3.2078]
[1735809224287,0.29097,3441.7,3441.6,0.29097]
[1735809224493,10.306052,3442.4,3441.3,5.2901264]
[1735809224688,0.29094,3442.1,3441.9,0.29095]
[1735809224887,0.29092,3442.3,3442.0,1.17744]
[1735809225097,0.29094,3442.1,3442.0,0.8865]
[1735809225397,0.29094,3442.1,3442.0,1.17745]
[1735809225791,4.0525,3442.5,3442.0,0.8865]
[1735809225993,0.29093,3442.2,3442.1,0.29093]
[1735809226594,0.29089,3442.7,3442.4,0.29091]
[1735809226799,0.33767551,3443.2,3442.5,2.0823264]
[1735809227090,11.67898365,3443.3,3442.8,5.2901264]
[1735809227296,0.29087,3443.0,3442.9,0.4441]
[1735809227495,0.29087,3443.0,3442.9,41.2441]
[1735809228392,0.29087,3443.0,3442.9,0.4441]
[1735809230892,0.4529,3443.3,3442.4,3.2078]
[1735809230893,2.0823264,3443.1,3442.4,3.2078]
[1735809231099,0.2909,3442.5,3442.4,3.2078]
[1735809231295,0.4602,3442.9,3442.4,3.49871]
[1735809231296,0.2909,3442.6,3442.4,3.49871]
[1735809231492,0.4529,3443.3,3442.4,3.2078]
[1735809231689,0.29087,3443.0,3442.8,0.29087]
[1735809232700,0.29087,3442.9,3442.8,0.29087]
[1735809233301,0.29087,3443.0,3442.8,0.29087]
[1735809233696,0.29087,3443.0,3442.9,0.29087]
[1735809233892,0.4529,3443.3,3442.8,3.2078]
[1735809234091,3.2078,3443.4,3442.8,3.2078]
[1735809234297,0.29086,3443.1,3442.9,0.29086]
[1735809234497,0.29086,3443.1,3443.0,0.29086]
[1735809234700,3.2078,3443.4,3443.0,0.29086]
[1735809235097,0.29084,3443.2,3443.1,0.4634]
[1735809235402,0.8855,3443.6,3443.1,0.4634]
[1735809235597,0.8855,3443.6,3443.2,0.75344]
[1735809235805,0.29084,3443.3,3443.2,0.4626]
[1735809238097,0.29084,3443.3,3443.2,0.75344]
[1735809239206,0.29084,3443.3,3443.2,0.4626]
[1735809240496,0.29350783,3443.3,3443.2,0.4626]
[1735809241504,0.29350783,3443.3,3443.2,0.6949]
[1735809241709,0.00266783,3443.3,3443.2,0.98574]
[1735809241897,0.00266783,3443.3,3443.2,4.19354]
[1735809244214,0.29079,3443.9,3443.2,3.9027]
[1735809244412,0.29079,3443.9,3443.8,0.29079]
[1735809244807,0.29079,3443.9,3443.4,2.0823264]
[1735809244808,1.21116058,3444.2,3443.4,2.0823264]
[1735809245007,3.2078,3444.3,3443.6,3.2078]
[1735809245208,0.29079,3443.9,3443.8,0.29079]
[1735809245406,0.29079,3443.9,3443.8,0.71899]
[1735809245908,3.2078,3444.3,3443.8,0.4282]
[1735809246108,0.29078,3444.0,3443.9,0.29078]
[1735809247514,0.29078,3444.0,3443.9,0.4295]
[1735809248214,0.29078,3444.0,3443.9,0.72028]
[1735809252619,0.29078,3444.0,3443.9,0.4295]
[1735809254315,0.29078,3444.0,3443.9,0.72028]
[1735809255112,3.2078,3444.3,3443.6,3.2078]
[1735809255313,0.2908,3443.7,3443.6,3.2078]
[1735809256513,0.2908,3443.7,3443.6,3.49861]
[1735809256715,0.4483,3444.1,3443.6,3.2078]
[1735809256919,0.2908,3443.8,3443.7,0.2908]
[1735809257421,0.29079,3443.9,3443.8,0.29079]
[1735809257721,0.2908,3443.7,3443.6,3.4986]
[1735809259215,0.2908,3443.8,3443.7,0.29079]
[1735809261529,0.29079,3443.9,3443.8,0.29078]
[1735809266418,0.29078,3444.0,3443.9,0.29077]
[1735809267828,0.29079,3443.9,3443.8,0.29079]
[1735809268024,0.29079,3443.9,3443.8,0.52309]
[1735809268324,0.29079,3443.9,3443.8,0.2323]
[1735809268723,0.74839,3443.9,3443.8,0.2323]
[1735809270229,0.29079,3443.9,3443.8,0.2323]
[1735809270528,0.29079,3443.9,3443.8,0.52309]
[1735809272733,0.29079,3443.9,3443.8,0.2323]
[1735809273032,0.29079,3443.9,3443.8,0.52309]
[1735809274737,0.29079,3443.9,3443.8,0.2323]
[1735809276635,0.29079,3443.9,3443.8,0.52309]
[1735809277233,0.29079,3443.9,3443.8,0.2323]
[1735809278229,0.29078,3444.0,3443.9,0.29078]
[1735809278431,0.29078,3444.0,3443.9,0.72668]
[1735809278630,0.29078,3444.0,3443.9,0.8872]
[1735809279033,0.29078,3444.0,3443.9,1.17798]
[1735809279231,0.29077,3444.0,3443.9,1.17798]
[1735809279534,0.29077,3444.0,3443.9,1.61548]
[1735809280832,0.29077,3444.0,3443.9,1.3247]
[1735809281034,0.29077,3444.0,3443.9,1.61548]
[1735809281233,0.29077,3444.0,3443.9,1.3247]
[1735809281435,0.29077,3444.0,3443.9,1.61548]
[1735809282031,0.29076,3444.3,3444.2,0.29075]
[1735809282335,10.765552,3444.4,3443.9,1.3247]
[1735809282541,0.29077,3444.0,3443.9,0.4513]
[1735809283838,0.29076,3444.2,3444.1,0.29076]
[1735809284340,0.29076,3444.1,3444.0,0.73967]
[1735809287236,0.29076,3444.2,3444.1,0.29076]
[1735809288333,14.69859529,3444.7,3444.0,3.6567]
[1735809288334,11.88946889,3444.7,3444.0,3.6567]
[1735809288538,0.29072,3444.6,3444.5,0.29072]
[1735809288734,11.74187889,3444.7,3444.6,0.4536]
[1735809294238,12.65417874,3444.7,3444.6,0.4536]
[1735809295933,0.29075,3444.3,3444.2,0.72575]
[1735809296443,0.29075,3444.3,3444.2,1.14465]
[1735809296637,0.29075,3444.3,3444.2,0.8539]
[1735809297645,0.29075,3444.3,3444.2,1.14466]
[1735809299143,0.29075,3444.3,3444.2,0.8539]
[1735809299937,0.29075,3444.3,3444.1,1.20305985]
[1735809300141,0.29075,3444.3,3444.0,3.2078]
[1735809300142,0.29076,3444.1,3444.0,3.2078]
[1735809300741,0.29071,3444.7,3444.0,5.0323997]
[1735809301051,0.29073,3444.5,3444.4,4.12009985]
[1735809301344,0.29073,3444.5,3444.4,3.2078]
[1735809312247,12.36346874,3444.8,3444.3,0.8865]
[1735809312554,0.29074,3444.4,3444.3,0.8865]
[1735809313855,0.29074,3444.5,3444.3,0.8865]
[1735809314751,0.29074,3444.5,3444.3,2.08953985]
[1735809314950,0.29074,3444.5,3444.4,0.2322]
[1735809315858,0.29074,3444.5,3444.4,0.6631]
[1735809316154,0.29074,3444.5,3444.4,0.95384]
[1735809316958,0.29074,3444.5,3444.4,0.6631]
[1735809317159,0.29074,3444.5,3444.4,0.95384]
[1735809317457,0.29074,3444.5,3444.4,4.16164]
[1735809318867,1.78919985,3445.0,3444.6,0.29072]
[1735809319057,0.4445,3445.0,3444.6,0.91229985]
[1735809319353,0.29071,3444.7,3444.6,1.20301985]
[1735809319862,0.29071,3444.8,3444.7,0.29071]
[1735809322858,0.2907,3444.9,3444.8,0.2907]
[1735809325161,0.4504,3445.3,3444.8,4.12009985]
[1735809325457,0.29069,3445.1,3445.0,0.29069]
[1735809325661,0.29069,3445.0,3444.9,1.62049]
[1735809325858,0.29069,3445.1,3445.0,0.29068]
[1735809326058,0.29069,3445.1,3445.0,1.20297985]
[1735809326369,0.29069,3445.1,3445.0,0.91229985]
[1735809326557,0.29069,3445.1,3445.0,1.20298985]
[1735809327555,2.08611985,3445.6,3445.0,0.91229985]
[1735809327758,1.35949985,3445.6,3445.0,0.91229985]
[1735809327959,0.29068,3445.2,3445.1,0.29067]
[1735809328461,0.29068,3445.1,3445.0,1.20297985]
[1735809329163,0.91229985,3445.4,3444.9,0.875]
[1735809329462,0.29073,3444.5,3444.4,3.2078]
[1735809329659,1.20302985,3444.5,3444.4,3.2078]
[1735809329862,0.29077,3444.0,3443.9,4.98726397]
[1735809330363,0.29077,3444.0,3443.9,4.53746397]
[1735809330563,0.29073,3444.5,3444.4,0.29074]
[1735809330756,0.4572,3444.7,3444.5,0.29073]
[1735809330962,0.74792,3444.7,3444.6,0.4316]
[1735809331360,0.4572,3444.7,3444.2,3.2078]
[1735809331667,0.29075,3444.3,3444.2,3.2078]
[1735809332968,0.29075,3444.3,3444.2,4.41085985]
[1735809333469,0.29072,3444.6,3444.3,0.29074]
[1735809333767,0.29074,3444.4,3444.3,0.29074]
[1735809333968,0.29074,3444.4,3444.3,1.20303985]
[1735809335074,0.29074,3444.4,3444.3,0.91229985]
[1735809335370,1.36949985,3444.7,3444.2,3.49855]
[1735809335571,0.29075,3444.3,3444.2,3.2078]
[1735809338170,0.72691,3444.2,3443.2,10.01182834]
[1735809338370,0.72694,3444.0,3443.3,5.29029397]
[1735809338564,0.4262,3444.1,3443.3,4.99946397]
[1735809338766,0.4311,3443.9,3443.4,0.29082]
[1735809338963,0.29081,3443.6,3443.4,0.29082]
[1735809339168,0.29082,3443.4,3443.3,4.99946397]
[1735809339471,0.29082,3443.4,3443.3,0.462]
[1735809341765,0.4336,3443.8,3443.2,3.2078]
[1735809341962,0.29083,3443.3,3443.2,3.2078]
[1735809343762,0.29083,3443.3,3443.2,3.6513]
[1735809348977,0.29083,3443.3,3443.2,3.94214]
[1735809349776,0.29083,3443.3,3443.2,3.6513]
[1735809351582,0.29083,3443.3,3443.2,3.2078]
[1735809353380,3.6414,3443.8,3443.2,3.2078]
[1735809353685,0.7269,3444.2,3444.1,0.29076]
[1735809353686,0.29076,3444.2,3444.1,0.29076]
[1735809354080,14.65896889,3444.6,3444.0,3.2078]
[1735809354383,0.29076,3444.1,3444.0,3.2078]
[1735809355586,0.29076,3444.1,3444.0,3.49857]
[1735809356081,0.29076,3444.2,3444.1,0.29076]
[1735809356482,3.2078,3444.6,3444.1,2.07693012]
[1735809356682,0.29073,3444.5,3444.4,0.29073]
[1735809357183,0.29074,3444.4,3444.3,0.29074]
[1735809357481,3.2078,3444.6,3444.2,0.29075]
[1735809357782,3.2078,3444.6,3444.0,3.6385]
[1735809357982,0.29075,3444.3,3444.2,0.29075]
[1735809360187,3.2078,3444.6,3444.0,3.6385]
[1735809360690,0.29075,3444.3,3444.1,0.29076]
[1735809361086,1.18247,3444.9,3444.2,0.29076]
[1735809361288,0.29075,3444.4,3444.3,0.29075]
[1735809362281,0.29073,3444.6,3444.0,3.6385]
[1735809362485,0.29073,3444.6,3444.1,2.07693012]
[1735809362686,0.29073,3444.6,3444.5,0.29073]
[1735809363286,0.29073,3444.6,3444.1,2.07693012]
[1735809363482,0.29073,3444.6,3444.4,0.29073]
[1735809363787,0.29067,3445.3,3445.1,0.29067]
[1735809364084,0.29067,3445.3,3444.5,3.2078]
[1735809364085,0.29067,3445.3,3445.2,0.4384]
[1735809365195,0.29067,3445.3,3444.9,3.2078]
[1735809365196,0.29069,3445.0,3444.9,3.2078]
[1735809367591,0.29069,3445.0,3444.9,3.4985]
[1735809367787,0.29069,3445.0,3444.9,3.2078]
[1735809368290,3.6722,3445.5,3444.9,3.2078]
[1735809368487,0.29068,3445.1,3445.0,0.29069]
[1735809368687,0.29067,3445.2,3445.1,0.29068]
[1735809368896,0.4644,3445.5,3444.9,3.2078]
[1735809369087,0.29067,3445.3,3444.9,3.2078]
[1735809369392,0.29067,3445.3,3445.1,0.29067]
[1735809369691,0.29067,3445.3,3445.2,0.4643]
[1735809369888,0.29067,3445.3,3445.2,0.8992]
[1735809370085,0.72654,3446.0,3445.2,0.8992]
[1735809370291,0.72654,3446.0,3445.3,0.4465]
[1735809370491,0.29065,3445.4,3445.3,0.4465]
[1735809370698,5.71533012,3445.9,3445.2,0.8992]
[1735809370887,0.29066,3445.3,3445.2,0.8992]
[1735809371885,2.07693012,3445.6,3444.9,3.2078]
[1735809372196,0.29069,3445.0,3444.9,3.2078]
[1735809372693,0.29069,3445.0,3444.9,3.4985]
[1735809374496,1.61843,3445.5,3444.9,3.2078]
[1735809374497,0.8918,3445.5,3444.9,3.2078]
[1735809374795,0.8918,3445.5,3445.0,0.29069]
[1735809374796,0.29069,3445.1,3445.0,0.29069]
[1735809375194,0.29069,3445.1,3444.9,3.2078]
[1735809375386,0.8918,3445.5,3444.9,3.2078]
[1735809375697,0.29069,3445.0,3444.9,3.2078]
[1735809375898,0.29069,3445.0,3444.9,3.4985]
[1735809376594,0.29069,3445.0,3444.9,3.2078]
[1735809378396,0.29069,3445.0,3444.9,3.4985]
[1735809378997,0.29068,3445.1,3445.0,0.29069]
[1735809379402,0.29067,3445.3,3445.2,0.29067]
[1735809379595,0.29067,3445.3,3444.9,3.2078]
[1735809379596,11.454932,3445.8,3444.9,3.2078]
[1735809379797,0.29068,3445.2,3445.1,0.29067]
[1735809380891,0.29067,3445.3,3445.2,0.29067]
[1735809381701,0.29067,3445.2,3445.1,0.29067]
[1735809381902,0.72658,3445.7,3444.9,3.2078]
[1735809382095,0.29067,3445.2,3445.1,0.29068]
[1735809382296,0.29068,3445.1,3445.0,0.29068]
[1735809382503,0.29067,3445.2,3445.1,0.29068]
[1735809382705,0.4653,3445.6,3444.9,3.2078]
[1735809382895,0.29067,3445.3,3445.2,0.29067]
[1735809384103,0.4306,3445.9,3445.1,2.07693012]
[1735809384402,11.45116889,3446.2,3446.1,0.2906]
[1735809384700,9.73516889,3446.2,3446.1,43.16753012]
[1735809384904,9.73516889,3446.2,3446.1,0.2906]
[1735809385106,0.29058,3446.3,3445.9,0.4216]
[1735809385307,0.29056,3446.6,3446.4,0.29057]
[1735809385604,0.29058,3446.3,3446.2,3.2078]
[1735809386904,0.4575,3446.7,3446.2,3.2078]
[1735809387110,0.29057,3446.4,3446.2,3.49838]
[1735809387509,0.29058,3446.3,3446.2,3.49838]
[1735809387905,0.4575,3446.7,3446.3,0.29058]
[1735809388210,0.29057,3446.5,3446.3,0.29058]
[1735809388810,0.29058,3446.3,3446.2,3.2078]
[1735809389010,0.27744329,3446.8,3446.2,3.2078]
[1735809389400,0.27744329,3446.8,3446.3,0.29058]
[1735809389401,0.29057,3446.4,3446.3,0.29058]
[1735809390514,0.29055,3446.7,3446.2,3.49838]
[1735809390813,0.29055,3446.7,3446.3,0.29058]
[1735809391214,0.56798329,3446.8,3446.2,3.2078]
[1735809391408,0.27744329,3446.8,3446.5,0.29056]
[1735809391607,0.56798329,3446.8,3446.6,0.437]
[1735809392615,0.56798329,3446.8,3446.6,0.72755]
[1735809392806,0.27744329,3446.8,3446.7,0.29055]
[1735809393013,0.29052,3447.0,3446.9,0.29053]
[1735809393312,0.29052,3447.0,3446.8,0.29053]
[1735809393515,0.29052,3447.1,3446.9,0.29053]
[1735809393717,0.56795329,3447.2,3447.1,0.29051]
[1735809393913,0.29051,3447.1,3446.7,2.94803012]
[1735809394209,0.27744329,3447.2,3446.7,2.94803012]
[1735809394415,0.29052,3447.1,3446.9,0.29053]
[1735809394810,0.29052,3447.1,3446.7,2.94803012]
[1735809395010,0.27744329,3447.2,3447.0,0.29052]
[1735809395410,0.29051,3447.2,3447.1,0.29051]
[1735809395614,0.91194113,3447.4,3446.7,2.94803012]
[1735809395915,0.29052,3447.1,3446.9,0.29052]
[1735809396116,0.91194113,3447.4,3446.9,0.29052]
[1735809396117,0.29052,3447.0,3446.9,0.29052]
[1735809396314,0.29052,3447.0,3446.7,0.8711]
[1735809396315,0.29051,3447.1,3447.0,0.29052]
[1735809396914,0.29051,3447.1,3446.7,0.8711]
[1735809396915,0.91194113,3447.4,3446.7,0.8711]
[1735809397110,0.29051,3447.1,3447.0,0.29052]
[1735809397316,0.29051,3447.1,3446.9,0.29052]
[1735809397615,0.29051,3447.1,3447.0,0.29052]
[1735809398113,0.91194113,3447.4,3446.7,0.8711]
[1735809398417,0.91194113,3447.4,3446.9,0.29052]
[1735809398820,0.91194113,3447.4,3446.7,0.8711]
[1735809399115,0.29052,3447.1,3447.0,0.29052]
[1735809399912,0.29051,3447.2,3447.1,0.29051]
[1735809401115,0.91194113,3447.4,3447.0,3.2078]
[1735809401418,0.29051,3447.1,3447.0,3.2078]
[1735809403019,0.29051,3447.1,3447.0,3.49832]
[1735809403322,0.29051,3447.1,3447.0,3.2078]
[1735809403622,0.2905,3447.3,3447.1,0.2905]
[1735809403921,0.2905,3447.3,3447.2,0.7491]
[1735809404121,0.91194113,3447.4,3447.2,0.4586]
[1735809404520,1.20243113,3447.4,3447.3,0.4222]
[1735809406022,1.20243113,3447.4,3447.3,0.6542]
[1735809409120,1.20243113,3447.4,3447.3,0.94469]
[1735809409327,0.91194113,3447.4,3447.3,3.48192012]
[1735809409529,1.20243113,3447.4,3447.3,3.19143012]
[1735809409727,1.20243113,3447.4,3447.3,3.48192012]
[1735809410028,0.91194113,3447.4,3447.3,3.48192012]
[1735809411628,1.20243113,3447.4,3447.3,1.1145]
[1735809412028,1.20243113,3447.4,3447.3,1.40499]
[1735809412230,1.20243113,3447.4,3447.3,1.1145]
[1735809412725,0.91194113,3447.4,3447.3,1.40499]
[1735809413121,0.91194113,3447.4,3447.3,1.1145]
[1735809413322,1.20243113,3447.4,3447.3,1.1145]
[1735809413526,1.20243113,3447.4,3447.3,1.40499]
[1735809414235,0.91194113,3447.4,3447.3,3.48192012]
[1735809415734,1.20243113,3447.4,3447.3,3.48192012]
[1735809415934,0.91194113,3447.4,3447.3,3.48192012]
[1735809418541,0.91194113,3447.4,3447.3,3.02162012]
[1735809418734,1.20243113,3447.4,3447.3,3.02162012]
[1735809419031,1.20243113,3447.4,3447.3,0.6542]
[1735809420732,1.20243113,3447.4,3447.3,0.232]
[1735809420922,1.65773113,3447.4,3447.3,0.232]
[1735809422331,0.91194113,3447.4,3447.3,0.52249]
[1735809423335,0.91194113,3447.4,3447.3,2.59942012]
[1735809423946,0.91194113,3447.4,3447.3,3.75342012]
[1735809424236,0.00245678,3448.0,3447.9,0.29044]
[1735809424533,0.00245678,3448.0,3447.9,3.49824]
[1735809424731,0.00245678,3448.0,3447.9,3.2078]
[1735809425031,0.00245678,3448.0,3447.5,5.28473012]
[1735809425230,0.00245678,3448.0,3447.9,0.29044]
[1735809425423,0.00245678,3448.0,3447.9,0.73964]
[1735809425828,0.00245678,3448.0,3447.9,0.4492]
[1735809426031,0.00245678,3448.0,3447.9,0.73964]
[1735809426934,0.00245678,3448.0,3447.9,3.94744]
[1735809427338,0.00245678,3448.0,3447.9,3.657]
[1735809427639,0.44785678,3448.0,3447.9,3.94744]
[1735809428033,0.44785678,3448.0,3447.9,3.2078]
[1735809428234,0.73829678,3448.0,3447.9,3.2078]
[1735809428537,0.44785678,3448.0,3447.5,5.70543012]
[1735809428834,0.29046,3447.7,3447.5,5.99591012]
[1735809429328,0.29046,3447.7,3447.5,5.70543012]
[1735809429533,0.29046,3447.7,3447.5,5.99591012]
[1735809429733,0.29046,3447.8,3447.5,5.99591012]
[1735809430439,0.8801,3447.9,3447.5,5.70543012]
[1735809430633,0.00245678,3448.0,3447.9,0.29044]
[1735809430833,0.00245678,3448.0,3447.9,0.73024]
[1735809431443,0.29289678,3448.0,3447.9,0.4398]
[1735809431638,0.29046,3447.8,3447.6,0.29046]
[1735809431834,0.446,3447.9,3447.5,6.14523012]
[1735809432143,0.29047,3447.6,3447.5,5.72453012]
[1735809432435,0.29047,3447.6,3447.5,3.2078]
[1735809433036,0.29049,3447.4,3447.3,0.232]
[1735809433632,0.29049,3447.4,3447.0,3.2078]
[1735809433633,3.2078,3447.4,3447.0,3.2078]
[1735809433840,0.29051,3447.1,3447.0,3.2078]
[1735809434039,1.1373287,3447.3,3446.5,3.2078]
[1735809434249,0.29055,3446.6,3446.5,3.2078]
[1735809436443,0.74255,3446.6,3446.5,3.2078]
[1735809437041,0.452,3446.6,3446.5,3.2078]
[1735809437240,10.306052,3446.7,3446.6,0.29055]
[1735809437836,0.29052,3447.0,3446.8,0.29053]
[1735809438142,10.596562,3447.2,3447.0,0.29052]
[1735809439144,10.306052,3447.2,3446.9,4.1133]
[1735809439344,0.29052,3447.1,3446.9,4.40382]
[1735809439546,0.29052,3447.0,3446.9,4.1133]
[1735809441046,0.29052,3447.0,3446.9,3.6699]
[1735809441548,0.29055,3446.7,3446.6,0.73505]
[1735809441745,0.29055,3446.7,3446.6,0.8657]
[1735809442244,0.29055,3446.6,3446.5,3.2078]
[1735809443141,3.93421,3446.6,3445.7,4.33972]
[1735809443443,0.29062,3445.8,3445.7,4.0491]